[Event "DVM U14 2021"]
[Site "Willingen"]
[Date "2022.08.15"]
[Round "6"]
[White "Fuhrmann, Bahne"]
[Black "Beyer, Lorenz"]
[Result "1/2-1/2"]
[ECO "E05"]
[WhiteElo "1973"]
[BlackElo "1587"]
[Annotator "NA RC"]
[PlyCount "46"]
[EventDate "2022.08.12"]
[EventType "team-tourn"]
[EventRounds "7"]
[EventCountry "GER"]
[SourceTitle "playchess.com"]
[Source "ChessBase"]
[SourceQuality "1"]
[TimeControl "40/5400+30:1800+30"]

1. d4 {[%emt 0:00:11]} d5 {[%emt 0:02:16]} 2. c4 {[%emt 0:00:03]} e6 {[%emt 0:00:03]} 3. Nf3 {[%emt 0:00:05]} Nf6 {[%emt 0:00:04]} 4. g3 {[%emt 0:02:03]} dxc4 {[%emt 0:00:18]} 5. Bg2 {[%emt 0:00:25]} Nbd7 {[%emt 0:03:43]} 6. O-O {[%emt 0:00:21]} Be7 {[%emt 0:02:50]} 7. Na3 {[%emt 0:01:37]} O-O {[%emt 0:00:25]} 8. Nxc4 {[%emt 0:00:49]} c5 {[%emt 0:01:02]} 9. dxc5 {[%emt 0:00:44]} Nxc5 {[%emt 0:01:47]} 10. Qc2 {[%emt 0:10:24]} Nd5 {[%emt 0:05:34]} 11. a3 {[%emt 0:00:47]} ({White should try} 11. Rd1 $14) 11... Bd7 {[%emt 0:17:14]} 12. e4 {[%emt 0:08:23]} Ba4 {[%emt 0:00:10]} 13. Qe2 {[%emt 0:02:17]} Nb6 {[%emt 0:08:01]} 14. Be3 {[%emt 0:13:44]} Bb5 {[%emt 0:17:33]} 15. Bxc5 {[%emt 0:06:37]} Bxc4 {[%emt 0:00:07]} 16. Bxb6 {[%emt 0:00:04]} Bxe2 {[%emt 0:00:05]} 17. Bxd8 {[%emt 0:00:12]} Rfxd8 {[%emt 0:01:49]} 18. Rfe1 {[%emt 0:07:59]} Bb5 {[%emt 0:01:52]} 19. Rac1 {[%emt 0:00:59]} Rac8 {[%emt 0:01:02]} 20. Bf1 {[%emt 0:03:52]} Ba4 {[%emt 0:06:38]} 21. h4 $17 {[%emt 0:03:36]} h6 {[%emt 0:04:37]} 22. Kg2 {[%emt 0:02:47]} Bf6 {[%emt 0:06:32]} 23. e5 {[%emt 0:00:06]} Be7 1/2-1/2

[Event "DVM U14 2021"]
[Site "Willingen"]
[Date "2022.08.15"]
[Round "6"]
[White "Malinowsky, Levi"]
[Black "Freude, Max"]
[Result "0-1"]
[ECO "B30"]
[WhiteElo "1814"]
[BlackElo "1819"]
[Annotator "NA RC"]
[PlyCount "100"]
[EventDate "2022.08.12"]
[EventType "team-tourn"]
[EventRounds "7"]
[EventCountry "GER"]
[SourceTitle "playchess.com"]
[Source "ChessBase"]
[SourceQuality "1"]
[TimeControl "40/5400+30:1800+30"]

1. e4 {[%emt 0:00:05]} c5 {[%emt 0:00:00]} 2. Nf3 {[%emt 0:00:06]} Nc6 {[%emt 0:00:00]} 3. Bb5 {[%emt 0:00:06]} e6 {[%emt 0:02:19]} 4. c3 {[%emt 0:05:13]} Nge7 {[%emt 0:02:33]} 5. O-O {[%emt 0:00:08]} d5 {[%emt 0:05:02]} 6. e5 {[%emt 0:05:05]} Ng6 {[%emt 0:02:54]} 7. d4 {[%emt 0:01:37]} cxd4 {[%emt 0:00:29]} 8. cxd4 {[%emt 0:00:55]} Be7 {[%emt 0:02:29]} 9. Nc3 {[%emt 0:01:16]} O-O {[%emt 0:02:23]} 10. Re1 {[%emt 0:02:47]} Bd7 {[%emt 0:05:09]} 11. Be3 {[%emt 0:00:38]} a6 {[%emt 0:01:12]} 12. Ba4 {[%emt 0:00:36]} b5 {[%emt 0:01:07]} 13. Bc2 {[%emt 0:02:09]} Rc8 {[%emt 0:04:52]} 14. g3 {[%emt 0:03:26]} Na5 {[%emt 0:07:33]} 15. Nd2 {[%emt 0:05:28]} Bb4 {[%emt 0:01:32]} 16. h4 {[%emt 0:03:15]} f5 {[%emt 0:02:48]} 17. exf6 {[%emt 0:01:53]} Qxf6 {[%emt 0:06:31]} 18. Rc1 {[%emt 0:18:22]} Nc6 {[%emt 0:02:03]} 19. Nb3 {[%emt 0:04:36]} Rf7 {[%emt 0:09:33]} 20. Qd3 {[%emt 0:02:05]} Bxc3 {[%emt 0:08:50]} 21. Qxc3 {[%emt 0:08:38]} e5 {[%emt 0:02:03]} 22. Qd2 {[%emt 0:05:01]} e4 {[%emt 0:01:24]} 23. Bd1 {[%emt 0:06:32]} Rcf8 {[%emt 0:02:41]} 24. Nc5 {[%emt 0:01:40]} Bh3 {[%emt 0:01:56]} 25. Kh2 {[%emt 0:02:46]} Bc8 {[%emt 0:02:33]} 26. Rh1 {[%emt 0:05:45]} Nge7 {[%emt 0:04:40]} 27. Bb3 {[%emt 0:01:54]} Rd8 {[%emt 0:01:31]} 28. Rhf1 {[%emt 0:00:33]} h6 {[%emt 0:03:14]} 29. Rcd1 {[%emt 0:01:49]} Bg4 {[%emt 0:00:59]} 30. Rc1 {[%emt 0:00:16]} Bc8 {[%emt 0:00:13]} 31. Rcd1 {[%emt 0:00:57]} Bg4 {[%emt 0:00:08]} 32. Rc1 {[%emt 0:02:02]} Nf5 {[%emt 0:01:17]} 33. Bd1 {[%emt 0:01:42]} Bf3 {[%emt 0:01:21]} 34. Bxf3 {[%emt 0:00:06]} exf3 {[%emt 0:04:51]} 35. Nd3 {[%emt 0:02:23]} Ncxd4 {[%emt 0:01:30]} 36. h5 {[%emt 0:02:54]} Nxe3 {[%emt 0:01:15]} 37. Qxe3 {[%emt 0:01:41]} Ne2 {[%emt 0:03:11]} 38. Nf4 {[%emt 0:02:14]} Nxf4 {[%emt 0:00:14]} 39. Qxf4 {[%emt 0:00:41]} Qxb2 {[%emt 0:00:14]} 40. Qh4 {[%emt 0:00:38]} Qf6 {[%emt 0:01:10]} 41. Qg4 {[%emt 0:03:21]} d4 {[%emt 0:01:03]} 42. Rfd1 {[%emt 0:03:26]} Qf5 {[%emt 0:02:23]} 43. Qh4 {[%emt 0:01:00]} Rfd7 {[%emt 0:03:52]} 44. Rc7 {[%emt 0:01:22]} d3 {[%emt 0:00:14]} 45. Rxd7 {[%emt 0:00:18]} Rxd7 {[%emt 0:00:35]} 46. a4 {[%emt 0:01:39]} d2 {[%emt 0:01:00]} 47. a5 {[%emt 0:03:59]} Qc2 {[%emt 0:00:55]} 48. Qg4 {[%emt 0:00:19]} Qxd1 {[%emt 0:00:14]} 49. Qxd7 {[%emt 0:00:17]} Qc2 {[%emt 0:01:39]} 50. Qc8+ {[%emt 0:00:09]} Qxc8 0-1

[Event "DVM U14 2021"]
[Site "Willingen"]
[Date "2022.08.15"]
[Round "6"]
[White "Braeutigam, Alexander"]
[Black "Freude, Paul"]
[Result "1/2-1/2"]
[ECO "A36"]
[WhiteElo "1771"]
[BlackElo "1477"]
[Annotator "NA RC"]
[PlyCount "152"]
[EventDate "2022.08.12"]
[EventType "team-tourn"]
[EventRounds "7"]
[EventCountry "GER"]
[SourceTitle "playchess.com"]
[Source "ChessBase"]
[SourceQuality "1"]
[TimeControl "40/5400+30:1800+30"]

1. c4 {[%emt 0:00:07]} c5 {[%emt 0:00:00]} 2. g3 {[%emt 0:00:06]} g6 {[%emt 0:00:00]} 3. Bg2 {[%emt 0:00:04]} Bg7 {[%emt 0:00:00]} 4. Nc3 {[%emt 0:00:07]} Nc6 {[%emt 0:00:00]} 5. d3 {[%emt 0:00:24]} e6 {[%emt 0:00:17]} 6. a3 {[%emt 0:00:28]} Nge7 {[%emt 0:01:21]} 7. Nf3 {[%emt 0:01:10]} a6 {[%emt 0:00:11]} 8. O-O {[%emt 0:00:17]} O-O {[%emt 0:00:21]} 9. Rb1 {[%emt 0:03:06]} d5 {[%emt 0:02:17]} 10. Qc2 {[%emt 0:08:24]} Nf5 {[%emt 0:02:21]} 11. b4 {[%emt 0:03:22]} Nfd4 {[%emt 0:00:19]} 12. Nxd4 {[%emt 0:00:21]} Nxd4 {[%emt 0:00:12]} 13. Qd2 {[%emt 0:02:12]} cxb4 {[%emt 0:00:07]} 14. axb4 {[%emt 0:00:49]} dxc4 {[%emt 0:00:11]} 15. dxc4 {[%emt 0:00:59]} Qc7 {[%emt 0:01:37]} 16. e3 {[%emt 0:02:05]} Nc6 {[%emt 0:04:27]} 17. Qc2 {[%emt 0:07:13]} Bxc3 {[%emt 0:00:12]} 18. Qxc3 {[%emt 0:00:44]} a5 {[%emt 0:00:37]} 19. Bb2 {[%emt 0:00:34]} f6 {[%emt 0:01:23]} 20. b5 {[%emt 0:06:17]} Nb4 {[%emt 0:04:12]} 21. Rbd1 {[%emt 0:02:34]} Rb8 {[%emt 0:01:34]} 22. Rd2 {[%emt 0:02:16]} e5 {[%emt 0:02:01]} 23. Rfd1 {[%emt 0:02:29]} Be6 {[%emt 0:10:55]} 24. c5 {[%emt 0:08:18]} b6 {[%emt 0:02:17]} 25. c6 {[%emt 0:08:37]} Rbd8 {[%emt 0:02:56]} 26. Ba3 {[%emt 0:05:31]} Rxd2 {[%emt 0:00:44]} 27. Qxd2 {[%emt 0:08:46]} Qe7 {[%emt 0:01:37]} 28. h4 {[%emt 0:01:59]} Kf7 {[%emt 0:05:26]} 29. Bxb4 {[%emt 0:02:55]} Qxb4 {[%emt 0:04:30]} 30. Qxb4 {[%emt 0:00:09]} axb4 {[%emt 0:07:03]} 31. Bd5 {[%emt 0:02:27]} Ra8 {[%emt 0:02:17]} 32. e4 {[%emt 0:04:18]} Ke7 {[%emt 0:04:26]} 33. Bxe6 {[%emt 0:00:09]} Kxe6 {[%emt 0:00:14]} 34. Rb1 {[%emt 0:00:41]} Ra4 {[%emt 0:01:28]} 35. Rc1 {[%emt 0:00:31]} Ra8 {[%emt 0:00:15]} 36. Rc4 {[%emt 0:00:52]} b3 {[%emt 0:01:30]} 37. Rb4 {[%emt 0:00:40]} Ra3 {[%emt 0:13:25]} 38. Kh2 {[%emt 0:01:21]} Kd6 {[%emt 0:00:31]} 39. Kg2 {[%emt 0:02:12]} Kc5 {[%emt 0:00:05]} 40. c7 {[%emt 0:00:56]} Ra8 {[%emt 0:01:19]} 41. Rxb3 {[%emt 0:32:05]} Rc8 {[%emt 0:30:30]} 42. Kf3 {[%emt 0:00:30]} Rxc7 {[%emt 0:00:06]} 43. Rc3+ {[%emt 0:00:05]} Kd6 {[%emt 0:00:14]} 44. Rd3+ {[%emt 0:02:07]} Ke7 {[%emt 0:00:10]} 45. Ke3 {[%emt 0:00:25]} Rc5 {[%emt 0:00:13]} 46. Rb3 {[%emt 0:04:12]} Kd6 {[%emt 0:00:15]} 47. Rd3+ {[%emt 0:00:07]} Ke6 {[%emt 0:00:09]} 48. Rb3 {[%emt 0:00:39]} f5 {[%emt 0:02:25]} 49. f3 {[%emt 0:03:37]} h6 {[%emt 0:02:20]} 50. Kd2 {[%emt 0:01:35]} fxe4 {[%emt 0:00:08]} 51. fxe4 {[%emt 0:00:58]} Rc4 {[%emt 0:00:23]} 52. Kd3 {[%emt 0:00:00]} Rc5 {[%emt 0:00:00]} 53. Ke3 {[%emt 0:00:00]} Kf6 {[%emt 0:00:00]} 54. g4 {[%emt 0:00:00]} Ke6 {[%emt 0:00:00]} 55. Kd2 {[%emt 0:00:00]} Rc4 {[%emt 0:00:00]} 56. Kd3 {[%emt 0:00:00]} Rc5 {[%emt 0:00:00]} 57. Kd2 {[%emt 0:00:00]} Ke7 {[%emt 0:00:00]} 58. g5 {[%emt 0:00:00]} h5 {[%emt 0:00:00]} 59. Rf3 {[%emt 0:00:00]} Rxb5 {[%emt 0:00:00]} 60. Rf6 {[%emt 0:00:00]} Rb2+ {[%emt 0:00:00]} 61. Ke3 {[%emt 0:00:00]} Rh2 {[%emt 0:00:00]} 62. Rxb6 {[%emt 0:00:00]} Rh3+ {[%emt 0:00:00]} 63. Kd2 {[%emt 0:00:00]} Rxh4 {[%emt 0:00:00]} 64. Ke3 {[%emt 0:00:00]} Rh3+ {[%emt 0:00:00]} 65. Ke2 {[%emt 0:00:10]} Rh2+ {[%emt 0:00:00]} 66. Ke3 {[%emt 0:04:21]} Rg2 {[%emt 0:00:00]} 67. Rxg6 {[%emt 0:00:47]} h4 {[%emt 0:00:00]} 68. Rh6 {[%emt 0:00:38]} Rg3+ {[%emt 0:00:00]} 69. Kf2 {[%emt 0:00:28]} Rg4 {[%emt 0:00:00]} 70. Kf3 {[%emt 0:00:42]} Rf4+ {[%emt 0:00:00]} 71. Ke3 {[%emt 0:00:42]} Kf7 {[%emt 0:00:00]} 72. g6+ {[%emt 0:01:21]} Kg7 {[%emt 0:00:00]} 73. Rh5 {[%emt 0:00:12]} Kxg6 {[%emt 0:00:00]} 74. Rxe5 {[%emt 0:02:06]} Rf1 {[%emt 0:00:00]} 75. Re8 {[%emt 0:01:12]} Kg7 {[%emt 0:00:00]} 76. Re5 {[%emt 0:00:15]} Kg6 1/2-1/2

[Event "DVM U14 2021"]
[Site "Willingen"]
[Date "2022.08.15"]
[Round "6"]
[White "Nitsche, Nikolai"]
[Black "Braeutigam, Katerina"]
[Result "0-1"]
[ECO "B13"]
[WhiteElo "1764"]
[BlackElo "1781"]
[Annotator "NA RC"]
[PlyCount "44"]
[EventDate "2022.08.12"]
[EventType "team-tourn"]
[EventRounds "7"]
[EventCountry "GER"]
[SourceTitle "playchess.com"]
[Source "ChessBase"]
[SourceQuality "1"]
[TimeControl "40/5400+30:1800+30"]

1. d4 {[%emt 0:00:01]} Nf6 {[%emt 0:00:06]} 2. Bf4 {[%emt 0:00:10]} g6 {[%emt 0:00:50]} 3. e3 {[%emt 0:00:07]} Bg7 {[%emt 0:00:12]} 4. h3 {[%emt 0:00:12]} d6 {[%emt 0:01:05]} 5. Nf3 {[%emt 0:00:12]} c5 {[%emt 0:02:12]} 6. c3 {[%emt 0:00:10]} cxd4 {[%emt 0:04:00]} 7. exd4 {[%emt 0:01:50]} O-O {[%emt 0:05:08]} 8. Bc4 {[%emt 0:01:24]} d5 {[%emt 0:02:56]} 9. Bd3 {[%emt 0:00:33]} Nc6 {[%emt 0:00:53]} 10. O-O {[%emt 0:00:37]} Bf5 {[%emt 0:01:28]} 11. Bxf5 {[%emt 0:05:44]} gxf5 {[%emt 0:00:07]} 12. Nbd2 {[%emt 0:01:00]} Kh8 {[%emt 0:05:09]} 13. Ne5 {[%emt 0:03:00]} e6 {[%emt 0:10:11]} 14. Ndf3 {[%emt 0:01:43]} Ne4 {[%emt 0:11:48]} 15. Nxc6 {[%emt 0:05:39]} bxc6 {[%emt 0:00:02]} 16. Ne5 {[%emt 0:00:14]} Qh4 {[%emt 0:05:36]} 17. Bh2 {[%emt 0:04:13]} Bxe5 {[%emt 0:08:05]} 18. Bxe5+ {[%emt 0:14:43]} f6 {[%emt 0:00:41]} 19. f3 {[%emt 0:00:41]} fxe5 {[%emt 0:11:28]} 20. fxe4 {[%emt 0:00:06]} dxe4 {[%emt 0:10:53]} 21. dxe5 {[%emt 0:01:25]} Rg8 {[%emt 0:00:18]} 22. Kh1 {[%emt 0:04:35]} Rxg2 {[%emt 0:01:46]} 0-1

[Event "DVM U14 2021"]
[Site "Willingen"]
[Date "2022.08.15"]
[Round "6"]
[White "Malan, Jan-Willem"]
[Black "Pichl, Christoph"]
[Result "0-1"]
[ECO "A26"]
[WhiteElo "1747"]
[BlackElo "1617"]
[Annotator "NA RC"]
[PlyCount "124"]
[EventDate "2022.08.12"]
[EventType "team-tourn"]
[EventRounds "7"]
[EventCountry "GER"]
[SourceTitle "playchess.com"]
[Source "ChessBase"]
[SourceQuality "1"]
[TimeControl "40/5400+30:1800+30"]

1. c4 {[%emt 0:00:04]} e5 {[%emt 0:00:17]} 2. g3 {[%emt 0:00:11]} Nf6 {[%emt 0:00:25]} 3. Bg2 {[%emt 0:00:32]} g6 {[%emt 0:01:06]} 4. Nc3 {[%emt 0:01:26]} Bg7 {[%emt 0:00:42]} 5. e4 {[%emt 0:00:53]} Nc6 {[%emt 0:00:18]} 6. Nge2 {[%emt 0:01:35]} d6 {[%emt 0:00:38]} 7. O-O {[%emt 0:01:17]} O-O {[%emt 0:01:20]} 8. d3 {[%emt 0:01:11]} Nd7 {[%emt 0:07:37]} 9. f4 {[%emt 0:03:36]} exf4 {[%emt 0:00:15]} 10. Bxf4 {[%emt 0:00:41]} Nd4 {[%emt 0:00:34]} 11. Nxd4 {[%emt 0:02:01]} Bxd4+ {[%emt 0:00:07]} 12. Kh1 {[%emt 0:00:27]} Nc5 {[%emt 0:00:51]} 13. Bh6 {[%emt 0:01:26]} Bg7 {[%emt 0:00:50]} 14. Bxg7 {[%emt 0:00:53]} Kxg7 {[%emt 0:00:02]} 15. b4 {[%emt 0:01:22]} Ne6 {[%emt 0:03:16]} 16. Qd2 {[%emt 0:02:00]} c5 {[%emt 0:01:05]} 17. Qb2 {[%emt 0:04:15]} f6 {[%emt 0:03:10]} 18. bxc5 {[%emt 0:03:08]} dxc5 {[%emt 0:00:18]} 19. Nd5 {[%emt 0:02:36]} Nd4 {[%emt 0:09:45]} 20. Rad1 {[%emt 0:05:08]} Rb8 {[%emt 0:03:33]} 21. Qa3 {[%emt 0:03:32]} Qd6 {[%emt 0:06:18]} 22. Qxa7 {[%emt 0:04:40]} Bd7 {[%emt 0:05:03]} 23. Qb6 {[%emt 0:03:37]} Bc6 {[%emt 0:01:53]} 24. Qc7+ {[%emt 0:02:20]} Qxc7 {[%emt 0:00:59]} 25. Nxc7 {[%emt 0:00:23]} Rf7 {[%emt 0:01:19]} 26. Nd5 {[%emt 0:01:39]} Ra8 {[%emt 0:00:26]} 27. Rd2 {[%emt 0:02:18]} f5 {[%emt 0:03:33]} 28. exf5 {[%emt 0:03:45]} Nxf5 {[%emt 0:00:14]} 29. Rdf2 {[%emt 0:01:39]} Raf8 {[%emt 0:00:20]} 30. g4 {[%emt 0:02:15]} Ng3+ {[%emt 0:01:10]} 31. Kg1 {[%emt 0:02:30]} Nxf1 {[%emt 0:00:12]} 32. Rxf7+ {[%emt 0:00:37]} Rxf7 {[%emt 0:00:09]} 33. Bxf1 {[%emt 0:00:32]} Bxd5 {[%emt 0:00:09]} 34. cxd5 {[%emt 0:00:39]} Rf4 {[%emt 0:00:20]} 35. Be2 {[%emt 0:00:32]} Rd4 {[%emt 0:00:07]} 36. Kg2 {[%emt 0:01:32]} Rxd5 {[%emt 0:00:16]} 37. Bf3 {[%emt 0:00:11]} Rxd3 {[%emt 0:00:10]} 38. Bxb7 {[%emt 0:00:09]} Rd2+ {[%emt 0:00:24]} 39. Kg3 {[%emt 0:00:33]} Rxa2 {[%emt 0:00:07]} 40. h3 {[%emt 0:00:47]} Rd2 {[%emt 0:01:22]} 41. Kh4 {[%emt 0:32:12]} c4 {[%emt 0:30:14]} 42. Be4 {[%emt 0:00:29]} c3 {[%emt 0:00:22]} 43. Bb1 {[%emt 0:00:33]} c2 {[%emt 0:00:10]} 44. Bxc2 {[%emt 0:00:10]} Rxc2 {[%emt 0:00:11]} 45. Kg5 {[%emt 0:00:30]} Rc3 {[%emt 0:00:30]} 46. Kh4 {[%emt 0:00:21]} h6 {[%emt 0:00:33]} 47. g5 {[%emt 0:00:18]} hxg5+ {[%emt 0:00:05]} 48. Kxg5 {[%emt 0:00:11]} Rxh3 {[%emt 0:00:09]} 49. Kg4 {[%emt 0:00:13]} Rh5 {[%emt 0:00:08]} 50. Kf4 {[%emt 0:00:17]} Kf6 {[%emt 0:00:12]} 51. Kg4 {[%emt 0:00:29]} g5 {[%emt 0:00:27]} 52. Kg3 {[%emt 0:00:31]} Kf5 {[%emt 0:00:12]} 53. Kf3 {[%emt 0:00:16]} Rh3+ {[%emt 0:00:07]} 54. Kg2 {[%emt 0:00:15]} Kg4 {[%emt 0:00:09]} 55. Kg1 {[%emt 0:00:43]} Kg3 {[%emt 0:00:15]} 56. Kf1 {[%emt 0:00:10]} Rh2 {[%emt 0:00:07]} 57. Ke1 {[%emt 0:00:21]} Kf3 {[%emt 0:00:07]} 58. Kd1 {[%emt 0:00:12]} Ke3 {[%emt 0:00:07]} 59. Kc1 {[%emt 0:00:08]} Kd3 {[%emt 0:00:11]} 60. Kb1 {[%emt 0:00:05]} Kc3 {[%emt 0:00:14]} 61. Ka1 {[%emt 0:00:16]} Kb3 {[%emt 0:00:07]} 62. Kb1 {[%emt 0:00:05]} Rh1# {[%emt 0:00:36]} 0-1

[Event "DVM U14 2021"]
[Site "Willingen"]
[Date "2022.08.15"]
[Round "6"]
[White "Tomasjan, Samuel"]
[Black "Lichtinger, Simon"]
[Result "1-0"]
[ECO "C25"]
[WhiteElo "1741"]
[BlackElo "1473"]
[Annotator "NA RC"]
[PlyCount "67"]
[EventDate "2022.08.12"]
[EventType "team-tourn"]
[EventRounds "7"]
[EventCountry "GER"]
[SourceTitle "playchess.com"]
[Source "ChessBase"]
[SourceQuality "1"]
[TimeControl "40/5400+30:1800+30"]

1. e4 {[%emt 0:00:01]} e5 {[%emt 0:00:04]} 2. f4 {[%emt 0:00:03]} exf4 {[%emt 0:00:53]} 3. Nf3 {[%emt 0:00:06]} Nc6 {[%emt 0:02:19]} 4. Nc3 {[%emt 0:00:55]} Bb4 {[%emt 0:03:55]} 5. d4 {[%emt 0:01:29]} d6 {[%emt 0:04:03]} 6. Bxf4 {[%emt 0:01:44]} Bg4 {[%emt 0:01:37]} 7. Bb5 {[%emt 0:01:24]} d5 {[%emt 0:01:09]} 8. e5 {[%emt 0:02:53]} Nge7 {[%emt 0:04:21]} 9. O-O {[%emt 0:03:46]} O-O {[%emt 0:02:01]} 10. Ne2 {[%emt 0:04:52]} Bxf3 {[%emt 0:03:37]} 11. Rxf3 {[%emt 0:00:22]} Ng6 {[%emt 0:02:04]} 12. Be3 {[%emt 0:03:26]} Be7 {[%emt 0:07:42]} 13. c3 {[%emt 0:03:52]} f6 {[%emt 0:05:45]} 14. exf6 {[%emt 0:01:35]} Rxf6 {[%emt 0:01:41]} 15. Rxf6 {[%emt 0:02:21]} Bxf6 {[%emt 0:04:27]} 16. Bd3 {[%emt 0:01:56]} Qe7 {[%emt 0:10:23]} 17. Bf2 {[%emt 0:01:49]} Qf7 {[%emt 0:08:44]} 18. Bxg6 {[%emt 0:06:48]} Qxg6 {[%emt 0:00:39]} 19. Qb3 {[%emt 0:00:57]} Qf7 {[%emt 0:16:45]} 20. Qxb7 {[%emt 0:01:50]} Rf8 {[%emt 0:00:12]} 21. Bg3 {[%emt 0:09:29]} Bg5 {[%emt 0:04:59]} 22. h3 {[%emt 0:01:49]} Qe6 {[%emt 0:02:38]} 23. Qxc7 {[%emt 0:12:44]} Rc8 {[%emt 0:10:12]} 24. Qd6 {[%emt 0:02:47]} Qxe2 {[%emt 0:00:36]} 25. Qxd5+ {[%emt 0:00:06]} Kh8 {[%emt 0:00:30]} 26. Qxg5 {[%emt 0:00:11]} Qxb2 {[%emt 0:00:12]} 27. Qc1 {[%emt 0:01:05]} Qxc1+ {[%emt 0:00:26]} 28. Rxc1 {[%emt 0:00:07]} Nxd4 {[%emt 0:00:05]} 29. Re1 {[%emt 0:01:11]} Nf5 {[%emt 0:00:58]} 30. Be5 {[%emt 0:00:19]} Kg8 {[%emt 0:00:46]} 31. Rf1 {[%emt 0:03:51]} Ne3 {[%emt 0:00:41]} 32. Rb1 {[%emt 0:00:27]} Re8 {[%emt 0:01:15]} 33. Bd4 {[%emt 0:00:18]} a6 {[%emt 0:00:27]} 34. Re1 {[%emt 0:00:10]} 1-0

[Event "DVM U14 2021"]
[Site "Willingen"]
[Date "2022.08.15"]
[Round "6"]
[White "Schoen, Florian"]
[Black "Keck, Johannes"]
[Result "1/2-1/2"]
[ECO "B23"]
[WhiteElo "1688"]
[BlackElo "1310"]
[Annotator "NA RC"]
[PlyCount "83"]
[EventDate "2022.08.12"]
[EventType "team-tourn"]
[EventRounds "7"]
[EventCountry "GER"]
[SourceTitle "playchess.com"]
[Source "ChessBase"]
[SourceQuality "1"]
[TimeControl "40/5400+30:1800+30"]

1. e4 {[%emt 0:00:01]} c5 {[%emt 0:00:42]} 2. Nc3 {[%emt 0:00:18]} Nc6 {[%emt 0:00:46]} 3. f4 {[%emt 0:00:07]} g6 {[%emt 0:00:44]} 4. Bb5 {[%emt 0:00:19]} Nd4 {[%emt 0:00:44]} 5. Nf3 {[%emt 0:00:22]} Bg7 {[%emt 0:00:44]} 6. Nxd4 {[%emt 0:04:01]} cxd4 {[%emt 0:04:31]} 7. Ne2 {[%emt 0:00:29]} a6 {[%emt 0:10:32]} 8. Bd3 {[%emt 0:00:09]} d5 {[%emt 0:02:28]} 9. e5 {[%emt 0:02:28]} Bg4 {[%emt 0:01:28]} 10. O-O {[%emt 0:00:57]} e6 {[%emt 0:01:28]} 11. b3 {[%emt 0:02:00]} Ne7 {[%emt 0:06:45]} 12. h3 {[%emt 0:01:43]} Bxe2 {[%emt 0:02:51]} 13. Qxe2 {[%emt 0:00:04]} Nc6 {[%emt 0:01:49]} 14. Qf2 {[%emt 0:04:52]} Qb8 {[%emt 0:02:10]} 15. Ba3 {[%emt 0:00:26]} Qa7 {[%emt 0:05:23]} 16. Qh4 {[%emt 0:01:26]} b5 {[%emt 0:06:42]} 17. Bd6 {[%emt 0:00:40]} Rd8 {[%emt 0:02:45]} 18. a3 {[%emt 0:03:34]} Rxd6 {[%emt 0:03:05]} 19. exd6 {[%emt 0:00:02]} O-O {[%emt 0:02:23]} 20. b4 {[%emt 0:06:39]} Qd7 {[%emt 0:01:49]} 21. Rfb1 {[%emt 0:18:07]} Qxd6 {[%emt 0:00:39]} 22. Qg4 {[%emt 0:02:23]} Rb8 {[%emt 0:09:51]} 23. g3 {[%emt 0:03:26]} h5 {[%emt 0:02:38]} 24. Qf3 {[%emt 0:00:39]} Bf6 {[%emt 0:03:39]} 25. Rf1 {[%emt 0:02:19]} Kg7 {[%emt 0:00:57]} 26. Rfb1 {[%emt 0:06:02]} Be7 {[%emt 0:02:48]} 27. Qf2 {[%emt 0:11:02]} Bf6 {[%emt 0:01:05]} 28. Ra2 {[%emt 0:04:03]} Be7 {[%emt 0:07:36]} 29. a4 {[%emt 0:07:58]} bxa4 {[%emt 0:01:45]} 30. Rxa4 {[%emt 0:01:29]} Nxb4 {[%emt 0:02:57]} 31. Qxd4+ {[%emt 0:06:40]} Kg8 {[%emt 0:01:05]} 32. Rba1 {[%emt 0:01:42]} Qc7 {[%emt 0:00:43]} 33. Qc3 {[%emt 0:00:37]} Qb6+ {[%emt 0:01:08]} 34. Kg2 {[%emt 0:00:19]} h4 {[%emt 0:00:33]} 35. g4 {[%emt 0:01:25]} d4 {[%emt 0:00:40]} 36. Qc4 {[%emt 0:01:05]} g5 {[%emt 0:01:45]} 37. Rf1 {[%emt 0:03:34]} Qd6 {[%emt 0:01:43]} 38. Rf3 {[%emt 0:02:45]} Nd5 {[%emt 0:00:54]} 39. Qxd4 {[%emt 0:00:46]} Nxf4+ {[%emt 0:00:37]} 40. Rxf4 {[%emt 0:00:51]} Qxf4 {[%emt 0:00:14]} 41. Qxf4 {[%emt 0:30:43]} Bf8 {[%emt 0:05:26]} 42. Qf1 {[%emt 0:00:04]} 1/2-1/2

[Event "DVM U14 2021"]
[Site "Willingen"]
[Date "2022.08.15"]
[Round "6"]
[White "Fettig, Konrad"]
[Black "Bezsonna, Polina"]
[Result "0-1"]
[ECO "B34"]
[WhiteElo "1677"]
[BlackElo "1631"]
[Annotator "NA RC"]
[PlyCount "92"]
[EventDate "2022.08.12"]
[EventType "team-tourn"]
[EventRounds "7"]
[EventCountry "GER"]
[SourceTitle "playchess.com"]
[Source "ChessBase"]
[SourceQuality "1"]
[TimeControl "40/5400+30:1800+30"]

1. e4 {[%emt 0:00:03]} c5 {[%emt 0:00:04]} 2. Nf3 {[%emt 0:00:07]} Nc6 {[%emt 0:00:09]} 3. d4 {[%emt 0:00:10]} cxd4 {[%emt 0:00:05]} 4. Nxd4 {[%emt 0:00:07]} g6 {[%emt 0:00:11]} 5. g3 {[%emt 0:00:33]} Bg7 {[%emt 0:00:41]} 6. Be3 {[%emt 0:02:51]} d6 {[%emt 0:00:38]} 7. Bb5 {[%emt 0:00:44]} Bd7 {[%emt 0:00:35]} 8. Bf1 {[%emt 0:02:20]} Nf6 {[%emt 0:00:53]} 9. Bg2 {[%emt 0:00:27]} Ng4 {[%emt 0:00:54]} 10. Nxc6 {[%emt 0:02:31]} bxc6 {[%emt 0:00:09]} 11. Bd4 {[%emt 0:00:53]} Nf6 {[%emt 0:04:27]} 12. O-O {[%emt 0:01:28]} O-O {[%emt 0:01:34]} 13. b3 {[%emt 0:00:31]} Qc8 {[%emt 0:02:25]} 14. Nd2 {[%emt 0:01:59]} Bh3 {[%emt 0:06:21]} 15. c4 {[%emt 0:04:13]} Bxg2 {[%emt 0:01:21]} 16. Kxg2 {[%emt 0:00:10]} Qb7 {[%emt 0:03:15]} 17. Rc1 {[%emt 0:02:34]} e5 {[%emt 0:09:49]} 18. Bb2 {[%emt 0:03:24]} Rad8 {[%emt 0:07:04]} 19. Qe2 {[%emt 0:02:10]} Rfe8 {[%emt 0:02:55]} 20. Rfd1 {[%emt 0:02:00]} Qa6 {[%emt 0:08:48]} 21. Rc2 {[%emt 0:06:06]} d5 {[%emt 0:01:36]} 22. exd5 {[%emt 0:01:50]} cxd5 {[%emt 0:10:48]} 23. Ba1 {[%emt 0:09:13]} d4 {[%emt 0:01:31]} 24. Ne4 {[%emt 0:03:15]} Nxe4 {[%emt 0:06:16]} 25. Qxe4 {[%emt 0:00:19]} f5 {[%emt 0:01:18]} 26. Qe2 {[%emt 0:02:16]} Qc6+ {[%emt 0:08:29]} 27. Kg1 {[%emt 0:01:03]} Bh6 {[%emt 0:06:36]} 28. Bb2 {[%emt 0:02:30]} f4 {[%emt 0:07:13]} 29. Qf1 {[%emt 0:03:07]} f3 {[%emt 0:00:59]} 30. c5 {[%emt 0:01:17]} Bg7 {[%emt 0:01:23]} 31. Qc4+ {[%emt 0:00:38]} Kh8 {[%emt 0:00:59]} 32. Rcd2 {[%emt 0:00:21]} a5 {[%emt 0:02:12]} 33. a3 {[%emt 0:00:36]} Rb8 {[%emt 0:00:30]} 34. b4 {[%emt 0:01:43]} axb4 {[%emt 0:00:22]} 35. axb4 {[%emt 0:00:06]} Qb5 {[%emt 0:00:30]} 36. Qxb5 {[%emt 0:00:54]} Rxb5 {[%emt 0:00:05]} 37. Ba3 {[%emt 0:00:54]} Ra8 {[%emt 0:02:20]} 38. Ra2 {[%emt 0:00:13]} Rxb4 {[%emt 0:01:07]} 39. Bxb4 {[%emt 0:00:24]} Rxa2 {[%emt 0:00:05]} 40. c6 {[%emt 0:00:16]} Rc2 {[%emt 0:00:55]} 41. Ra1 {[%emt 0:30:06]} Bf6 {[%emt 0:30:34]} 42. Ra8+ {[%emt 0:00:30]} Kg7 {[%emt 0:00:08]} 43. Ra7+ {[%emt 0:00:05]} Kg8 {[%emt 0:02:01]} 44. Ra8+ {[%emt 0:00:10]} Kf7 {[%emt 0:00:23]} 45. Rf8+ {[%emt 0:01:08]} Kg7 {[%emt 0:00:53]} 46. h4 {[%emt 0:00:14]} Rxc6 {[%emt 0:00:24]} 0-1